bitfinex-derivatives/quotes_BTCF0:USTF0_20250114
["timestamp","ask_amount","ask_price","bid_price","bid_amount"]
[1736877646641,0.11368045,96630.0,96616.0,0.051779]
[1736877646642,0.051779,96617.0,96616.0,0.051779]
[1736877647456,0.01048759,96630.0,96616.0,0.3608]
[1736877647755,0.005,96634.0,96633.0,0.05177]
[1736877647950,0.01199653,96646.0,96643.0,0.051765]
[1736877648156,0.01199653,96646.0,96645.0,0.051764]
[1736877650552,0.01599653,96646.0,96645.0,0.052764]
[1736877650757,0.01899653,96646.0,96645.0,0.052764]
[1736877650959,0.07075953,96646.0,96645.0,0.001]
[1736877654057,0.08429653,96646.0,96630.0,0.4865]
[1736877654254,0.3608,96639.0,96630.0,0.4865]
[1736877654459,0.05177,96634.0,96630.0,0.4865]
[1736877655060,0.051767,96640.0,96630.0,0.4865]
[1736877655254,0.051765,96643.0,96630.0,0.58969286]
[1736877655456,0.051766,96641.0,96635.0,0.051769]
[1736877655655,0.051766,96641.0,96630.0,0.4865]
[1736877655966,0.051766,96641.0,96639.0,0.051767]
[1736877656957,0.01205353,96646.0,96640.0,0.051766]
[1736877657164,0.051764,96645.0,96640.0,0.051766]
[1736877657364,0.051764,96644.0,96640.0,0.051766]
[1736877657564,0.003,96641.0,96640.0,0.051766]
[1736877657760,0.009,96641.0,96640.0,0.051766]
[1736877658256,0.051764,96644.0,96640.0,0.052766]
[1736877659564,0.006,96641.0,96640.0,0.052766]
[1736877659964,0.009,96641.0,96640.0,0.052766]
[1736877660360,0.003,96641.0,96640.0,0.051766]
[1736877660556,0.003,96641.0,96640.0,0.052766]
[1736877660957,0.003,96641.0,96640.0,0.051766]
[1736877661265,0.008,96641.0,96640.0,0.052766]
[1736877661467,0.059766,96641.0,96640.0,0.052766]
[1736877661665,0.059766,96641.0,96640.0,0.001]
[1736877664771,0.059766,96641.0,96605.0,0.18422032]
[1736877664772,0.051781,96613.0,96605.0,0.18422032]
[1736877664974,0.051785,96606.0,96605.0,0.18422032]
[1736877665769,0.051788,96600.0,96595.0,0.05179]
[1736877665964,0.06002377,96606.0,96605.0,0.003]
[1736877666169,0.06002377,96606.0,96605.0,0.054785]
[1736877666368,0.00052001,96626.0,96605.0,0.003]
[1736877666670,0.46399286,96630.0,96612.0,0.3608]
[1736877666975,0.051781,96613.0,96612.0,0.3608]
[1736877668064,0.051781,96613.0,96612.0,0.3638]
[1736877669173,0.051781,96613.0,96612.0,0.3648]
[1736877669571,0.06213832,96613.0,96612.0,0.3648]
[1736877670674,0.06213832,96613.0,96612.0,0.3638]
[1736877670973,0.06213832,96613.0,96612.0,0.3608]
[1736877671287,0.05179,96595.0,96594.0,0.3608]
[1736877671982,0.051794,96589.0,96588.0,0.18422032]
[1736877672176,0.051795,96586.0,96585.0,0.00155291]
[1736877673775,0.412595,96586.0,96585.0,0.00155291]
[1736877673979,0.412595,96586.0,96565.0,0.1295]
[1736877673980,0.3608,96586.0,96568.0,0.3608]
[1736877674173,0.051804,96569.0,96568.0,0.3608]
[1736877675873,0.051804,96569.0,96556.0,0.0669]
[1736877676077,0.051811,96556.0,96546.0,0.051816]
[1736877676380,0.3608,96562.0,96546.0,0.051816]
[1736877676964,0.3608,96562.0,96556.0,0.006]
[1736877677276,0.3608,96562.0,96556.0,0.009]
[1736877677576,0.051811,96557.0,96556.0,0.003]
[1736877678491,0.3618,96562.0,96554.0,0.0726]
[1736877678687,0.3618,96562.0,96554.0,0.0756]
[1736877678688,0.051812,96555.0,96554.0,0.0756]
[1736877678888,0.051809,96560.0,96555.0,0.051812]
[1736877679193,0.05181,96559.0,96556.0,0.005]
[1736877679382,0.05181,96559.0,96556.0,0.007]
[1736877679590,0.3608,96562.0,96556.0,0.007]
[1736877679789,0.051811,96557.0,96556.0,0.002]
[1736877679986,0.051811,96557.0,96556.0,0.053811]
[1736877680187,0.051806,96566.0,96555.0,0.002]
[1736877680396,0.051806,96566.0,96561.0,0.412609]
[1736877680695,0.051807,96564.0,96561.0,0.412609]
[1736877681093,0.11379896,96570.0,96561.0,0.3608]
[1736877681292,0.051808,96562.0,96561.0,0.3608]
[1736877682196,0.11379896,96570.0,96556.0,0.007]
[1736877682398,0.051811,96557.0,96556.0,0.007]
[1736877682586,0.051811,96557.0,96556.0,0.005]
[1736877683106,0.051812,96555.0,96554.0,1.56752]
[1736877683290,0.051812,96555.0,96554.0,1.5666]
[1736877683598,0.051812,96555.0,96554.0,0.0666]
[1736877684393,0.052812,96555.0,96554.0,0.0726]
[1736877684992,0.052812,96555.0,96554.0,0.0756]
[1736877685197,0.001,96555.0,96554.0,0.4364]
[1736877685498,0.051804,96571.0,96570.0,0.051802]
[1736877686088,0.051807,96566.0,96565.0,0.051806]
[1736877687389,0.051807,96566.0,96565.0,0.053806]
[1736877688595,0.051807,96566.0,96565.0,0.054806]
[1736877688983,0.051807,96566.0,96565.0,0.056806]
[1736877689189,0.051807,96566.0,96565.0,0.057806]
[1736877690294,0.06205666,96566.0,96565.0,0.057806]
[1736877692889,0.051807,96566.0,96565.0,0.057806]
[1736877693198,0.051807,96566.0,96565.0,0.006]
[1736877693401,0.051807,96566.0,96565.0,0.002]
[1736877693599,0.051807,96566.0,96565.0,0.006]
[1736877694505,0.116807,96566.0,96565.0,0.006]
[1736877694688,0.117807,96566.0,96565.0,0.006]
[1736877694896,0.051815,96549.0,96548.0,0.0015535]
[1736877696210,0.175506,96567.0,96548.0,0.0015535]
[1736877696211,0.051814,96552.0,96548.0,0.0055535]
[1736877696500,0.051815,96550.0,96549.0,0.051815]
[1736877696998,0.051815,96550.0,96549.0,0.23603532]
[1736877697396,0.051815,96550.0,96549.0,0.18422032]
[1736877698301,0.051812,96555.0,96553.0,0.051813]
[1736877698491,0.01041752,96567.0,96552.0,0.3608]
[1736877698694,0.051802,96574.0,96569.0,0.051804]
[1736877699094,0.051802,96573.0,96570.0,0.051804]
[1736877699300,0.01055155,96578.0,96570.0,0.051804]
[1736877699491,0.10319286,96580.0,96562.0,0.1252]
[1736877699492,0.051805,96569.0,96562.0,0.1252]
[1736877699897,0.051805,96569.0,96568.0,0.051805]
[1736877700096,0.46451287,96600.0,96562.0,0.1252]
[1736877700097,0.10319286,96578.0,96562.0,0.1252]
[1736877700402,0.051807,96565.0,96562.0,0.1252]
[1736877700599,0.051807,96564.0,96562.0,0.1252]
[1736877700904,0.051807,96564.0,96562.0,0.177008]
[1736877701599,0.051808,96563.0,96562.0,0.177008]
[1736877701905,0.051808,96563.0,96562.0,0.184008]
[1736877702409,0.051808,96563.0,96562.0,0.179008]
[1736877702599,0.051808,96563.0,96562.0,0.184008]
[1736877703107,0.051808,96563.0,96562.0,0.1312]
[1736877703401,0.051808,96563.0,96562.0,0.006]
[1736877703701,0.412608,96563.0,96562.0,0.006]
[1736877703892,0.413608,96563.0,96562.0,0.006]
[1736877704103,0.051808,96562.0,96561.0,0.0564725]
[1736877704298,0.051808,96562.0,96554.0,0.2457965]
[1736877704299,0.051809,96560.0,96559.0,0.0564725]
[1736877705503,0.051809,96560.0,96558.0,0.05181]
[1736877706007,0.3608,96563.0,96562.0,0.051808]
[1736877706501,0.051804,96570.0,96569.0,0.051804]
[1736877706805,0.55792001,96591.0,96567.0,0.3608]
[1736877706991,0.00056001,96591.0,96584.0,0.051796]
[1736877707196,0.051794,96588.0,96584.0,0.051796]
[1736877707402,0.051792,96593.0,96584.0,0.051796]
[1736877707605,0.051793,96590.0,96584.0,0.051796]
[1736877707999,0.10319286,96594.0,96584.0,0.051796]
[1736877708201,0.051795,96587.0,96584.0,0.051796]
[1736877708405,0.00355368,96585.0,96584.0,0.051796]
[1736877710697,0.00855368,96585.0,96584.0,0.052796]
[1736877710899,0.00855368,96585.0,96584.0,0.001]
[1736877711095,0.06034968,96585.0,96584.0,0.001]
[1736877713602,0.06034968,96585.0,96576.0,0.24636151]
[1736877713603,0.0518,96577.0,96576.0,0.24636151]
[1736877713802,0.0518,96577.0,96566.0,0.24636151]
[1736877713803,0.3608,96577.0,96566.0,0.24636151]
[1736877714009,0.051805,96567.0,96566.0,0.24636151]
[1736877715006,0.051808,96562.0,96558.0,0.05181]
[1736877715202,0.051809,96560.0,96558.0,0.05181]
[1736877715401,0.05181,96559.0,96558.0,0.05181]
[1736877715596,0.3618,96577.0,96555.0,0.3608]
[1736877715809,0.051802,96574.0,96572.0,0.051802]
[1736877716409,0.051802,96573.0,96572.0,0.051802]
[1736877716607,0.051802,96573.0,96563.0,0.3608]
[1736877716911,0.051803,96571.0,96568.0,0.051804]
[1736877717808,0.051803,96571.0,96570.0,0.051804]
[1736877718015,0.00155368,96585.0,96568.0,0.001]
[1736877718198,0.051798,96581.0,96578.0,0.051799]
[1736877718716,0.00155368,96585.0,96578.0,0.051799]
[1736877718717,0.051798,96580.0,96578.0,0.051799]
[1736877719513,0.051799,96579.0,96578.0,0.051799]
[1736877719699,0.0518,96577.0,96573.0,0.051802]
[1736877719903,0.0518,96577.0,96572.0,0.0621]
[1736877719904,0.0518,96577.0,96574.0,0.051802]
[1736877720103,0.0518,96577.0,96575.0,0.051801]
[1736877720315,0.0518,96577.0,96576.0,0.051801]
[1736877721314,0.0528,96577.0,96576.0,0.051801]
[1736877721511,0.001,96577.0,96576.0,0.051801]
[1736877721704,0.002,96577.0,96576.0,0.051801]
[1736877722805,0.001,96577.0,96576.0,0.051801]
[1736877723010,0.003,96577.0,96576.0,0.051801]
[1736877723215,0.002,96577.0,96576.0,0.051801]
[1736877723419,0.003,96577.0,96576.0,0.051801]
[1736877725122,0.051802,96574.0,96573.0,0.179702]
[1736877727708,0.06195967,96574.0,96573.0,0.179702]
[1736877727912,0.06195967,96574.0,96561.0,0.3608]
[1736877727913,0.01015767,96574.0,96561.0,0.3608]
[1736877728110,0.051808,96562.0,96561.0,0.412609]
[1736877728314,0.051808,96562.0,96561.0,0.051809]
[1736877728815,0.051812,96557.0,96556.0,0.051811]
[1736877730923,0.052812,96557.0,96556.0,0.056811]
[1736877731215,0.052812,96557.0,96556.0,0.058811]
[1736877735417,0.052812,96557.0,96556.0,0.007]
[1736877736630,0.001,96557.0,96556.0,0.058811]
[1736877737221,0.001,96557.0,96556.0,1.556811]
[1736877737625,0.051805,96568.0,96567.0,0.051805]
[1736877737831,0.06203693,96568.0,96567.0,0.412605]
[1736877739723,0.06203693,96568.0,96567.0,0.054805]
[1736877740824,0.051805,96568.0,96567.0,0.054805]
[1736877741223,0.0518,96578.0,96577.0,0.051799]
[1736877741419,0.06229485,96578.0,96577.0,0.051799]
[1736877742930,0.06529485,96578.0,96577.0,0.051799]
[1736877743131,0.06629485,96578.0,96577.0,0.051799]
[1736877744128,0.01449485,96578.0,96574.0,0.3608]
[1736877744432,0.051801,96575.0,96574.0,0.3608]
[1736877744831,0.051802,96574.0,96573.0,0.051802]
[1736877746040,0.051804,96569.0,96568.0,0.0609]
[1736877746430,0.051802,96575.0,96568.0,0.0609]
[1736877746632,0.051803,96574.0,96573.0,0.051802]
[1736877747745,0.01049485,96578.0,96577.0,0.0518]
[1736877747938,0.3608,96588.0,96587.0,0.051795]
[1736877747939,0.051794,96588.0,96587.0,0.051795]
[1736877748347,0.06222461,96588.0,96587.0,0.051795]
[1736877749165,0.00155329,96596.0,96587.0,0.3608]
[1736877749333,0.051781,96614.0,96597.0,0.051789]
[1736877749540,0.1243,96617.0,96608.0,0.3608]
[1736877749742,0.051781,96612.0,96608.0,0.3608]
[1736877749939,0.051781,96612.0,96611.0,0.051782]
[1736877750239,0.1243,96617.0,96608.0,0.3608]
[1736877750447,0.051787,96602.0,96600.0,0.051787]
[1736877750641,0.10319286,96610.0,96597.0,0.006]
[1736877750843,0.051789,96598.0,96597.0,0.006]
[1736877751241,0.051789,96598.0,96597.0,0.055789]
[1736877751457,0.051788,96600.0,96598.0,0.051789]
[1736877752240,0.10319286,96610.0,96597.0,0.004]
[1736877752438,0.051789,96598.0,96597.0,0.004]
[1736877752843,0.051789,96598.0,96597.0,0.001]
[1736877753240,0.051789,96598.0,96597.0,0.052789]
[1736877753854,0.051789,96598.0,96597.0,0.055789]
[1736877754748,0.06225953,96598.0,96597.0,0.004]
[1736877755443,0.06225953,96598.0,96597.0,0.055789]
[1736877756247,0.051787,96603.0,96602.0,0.051786]
[1736877757952,0.051787,96603.0,96602.0,0.052786]
[1736877758545,0.051787,96603.0,96602.0,0.001]
[1736877758856,0.051787,96603.0,96602.0,0.003]
[1736877759942,0.051787,96603.0,96602.0,0.002]
[1736877760244,0.051787,96603.0,96602.0,0.001]
[1736877761240,0.051788,96600.0,96599.0,0.051788]
[1736877762852,0.051788,96600.0,96580.0,0.16899286]
[1736877762853,0.051797,96583.0,96582.0,0.180397]
[1736877763052,0.3608,96593.0,96582.0,0.180397]
[1736877763257,0.051794,96588.0,96587.0,0.051792]
[1736877763447,0.051791,96595.0,96594.0,0.05179]
[1736877763756,0.051791,96595.0,96594.0,0.41259]
[1736877764448,0.051788,96600.0,96599.0,0.051786]
[1736877766359,0.051788,96600.0,96599.0,0.052786]
[1736877766953,0.051788,96600.0,96599.0,0.054786]
[1736877773160,0.051788,96600.0,96599.0,0.003]
[1736877774459,0.051788,96600.0,96599.0,0.001]
[1736877774768,0.051788,96600.0,96599.0,0.003]
[1736877775263,0.301,96600.0,96581.0,0.3608]
[1736877775464,0.301,96600.0,96578.0,0.00155312]
[1736877775465,0.051797,96582.0,96578.0,0.00155312]
[1736877775649,0.051799,96579.0,96578.0,0.00155312]
[1736877777263,0.051799,96579.0,96578.0,0.00355312]
[1736877777264,0.052799,96579.0,96578.0,0.00355312]
[1736877777764,0.052799,96579.0,96578.0,0.00155312]
[1736877778169,0.052799,96579.0,96578.0,0.00555312]
[1736877778760,0.052799,96579.0,96578.0,0.00155312]
[1736877779859,0.06302932,96579.0,96578.0,0.00155312]
[1736877780059,0.06302932,96579.0,96552.0,0.24636151]
[1736877780060,0.051813,96553.0,96552.0,0.36127451]
[1736877780267,0.051813,96553.0,96552.0,0.30946151]
[1736877780662,0.051813,96553.0,96552.0,0.36127451]
[1736877780862,0.10319286,96562.0,96552.0,0.36127451]
[1736877780863,0.10319286,96562.0,96552.0,0.30946151]
[1736877781065,0.1257,96568.0,96552.0,0.30946151]
[1736877781066,0.0603,96568.0,96552.0,0.0631]
[1736877781267,0.3638,96579.0,96561.0,0.3608]
[1736877781466,0.051803,96573.0,96569.0,0.051804]
[1736877781689,0.3638,96579.0,96561.0,0.3608]
[1736877781690,0.37400576,96579.0,96562.0,0.124]
[1736877781864,0.051802,96573.0,96562.0,0.124]
[1736877782063,0.051802,96573.0,96572.0,0.051803]
[1736877783279,0.051802,96573.0,96572.0,0.053803]
[1736877783568,0.051802,96573.0,96572.0,0.002]
[1736877783767,0.051802,96573.0,96572.0,0.003]
[1736877785567,0.052802,96573.0,96572.0,0.003]
[1736877786074,0.053802,96573.0,96572.0,0.002]
[1736877786571,0.051813,96553.0,96552.0,0.051813]
[1736877786777,0.051813,96552.0,96551.0,0.3618]
[1736877786979,0.051813,96552.0,96551.0,0.3608]
[1736877787577,0.05181,96560.0,96557.0,0.051811]
[1736877787877,0.005,96573.0,96557.0,0.051811]
[1736877788177,0.05181,96559.0,96557.0,0.051811]
[1736877789074,0.05181,96558.0,96557.0,0.051811]
[1736877789575,0.05181,96558.0,96557.0,0.052811]
[1736877790176,0.05181,96558.0,96557.0,0.054811]
[1736877799280,0.05181,96558.0,96557.0,0.003]
[1736877800189,0.20638572,96570.0,96557.0,0.003]
[1736877800190,0.0654,96585.0,96557.0,0.003]
[1736877800485,0.3608,96592.0,96575.0,0.051801]
[1736877800486,0.06219372,96579.0,96575.0,0.051801]
[1736877800688,0.05335147,96582.0,96581.0,0.051798]
[1736877800985,0.0518,96578.0,96577.0,0.0518]
[1736877801185,0.0518,96578.0,96577.0,1.5518]
[1736877802084,0.0538,96578.0,96577.0,1.5518]
[1736877803079,0.0598,96578.0,96577.0,1.5518]
[1736877803486,0.0588,96578.0,96577.0,1.5518]
[1736877804077,0.0568,96578.0,96577.0,1.5518]
[1736877804384,0.0588,96578.0,96577.0,1.5518]
[1736877806289,0.051802,96574.0,96573.0,0.3608]
[1736877806589,0.0588,96578.0,96572.0,0.29816451]
[1736877806590,0.051802,96573.0,96572.0,0.29816451]
[1736877807191,0.051802,96573.0,96572.0,0.051803]
[1736877807581,0.006,96574.0,96573.0,0.051802]
[1736877807787,0.006,96574.0,96573.0,1.912602]
[1736877807986,0.00155347,96582.0,96581.0,0.051798]
[1736877808188,0.05335047,96582.0,96581.0,0.412598]
[1736877809392,0.00155347,96582.0,96581.0,0.412598]
[1736877809893,0.051793,96590.0,96589.0,0.051794]
[1736877810090,0.3608,96607.0,96589.0,0.3608]
[1736877810390,0.051778,96618.0,96617.0,0.051778]
[1736877810586,0.05178,96615.0,96612.0,0.051781]
[1736877810791,0.00155313,96620.0,96606.0,0.3608]
[1736877811092,0.00155313,96620.0,96614.0,0.05178]
[1736877811093,0.05178,96615.0,96614.0,0.05178]
[1736877812391,0.01192155,96620.0,96617.0,0.051779]
[1736877812793,0.06369855,96620.0,96617.0,0.051779]
[1736877812994,0.051778,96619.0,96617.0,0.051779]
[1736877813293,0.01192155,96620.0,96606.0,0.3608]
[1736877813489,0.16689241,96620.0,96617.0,0.051778]
[1736877813680,0.06369955,96620.0,96617.0,0.051778]
[1736877814492,0.06369955,96620.0,96619.0,0.051778]
[1736877815295,0.00855313,96620.0,96619.0,0.051778]
[1736877815792,0.00855313,96620.0,96619.0,0.052778]
[1736877816790,0.00855313,96620.0,96619.0,1.552778]
[1736877816992,0.00955313,96620.0,96619.0,0.052778]
[1736877817196,0.06133013,96620.0,96619.0,0.052778]
[1736877817693,0.00955313,96620.0,96619.0,0.052778]
[1736877818700,0.06133013,96620.0,96619.0,0.052778]
[1736877820400,0.00955313,96620.0,96619.0,0.052778]
[1736877820699,0.06133013,96620.0,96619.0,0.052778]
[1736877822592,0.00955313,96620.0,96619.0,0.052778]
[1736877823599,0.00955313,96620.0,96619.0,0.413578]
[1736877823897,0.008,96620.0,96619.0,0.413578]
[1736877824193,0.051769,96635.0,96619.0,1.913578]
[1736877824504,0.05177,96634.0,96633.0,0.051768]
[1736877825295,0.051767,96639.0,96638.0,0.051767]
[1736877826998,0.054767,96639.0,96638.0,0.051767]
[1736877827792,0.060767,96639.0,96638.0,0.052767]
[1736877830592,0.197233,96638.0,96631.0,0.4267]
[1736877831197,0.197233,96638.0,96637.0,0.051768]
[1736877831403,0.249,96638.0,96637.0,0.051768]
[1736877831595,0.051771,96633.0,96632.0,0.05177]
[1736877833198,0.051768,96637.0,96636.0,0.051768]
[1736877834398,0.054768,96637.0,96636.0,0.051768]
[1736877834897,0.060768,96637.0,96636.0,0.051768]
[1736877835498,0.060768,96637.0,96631.0,0.3608]
[1736877835499,0.051771,96632.0,96631.0,0.3608]
[1736877835894,0.051771,96632.0,96631.0,0.412571]
[1736877836703,0.053771,96632.0,96631.0,0.412571]
[1736877837310,0.002,96632.0,96631.0,0.412571]
[1736877837821,0.005,96632.0,96631.0,0.412571]
[1736877838802,0.005,96632.0,96631.0,1.912571]
[1736877840615,0.10474539,96650.0,96646.0,0.051763]
[1736877840616,0.00155253,96650.0,96646.0,0.051763]
[1736877840823,0.00155253,96650.0,96646.0,0.412563]
[1736877841911,0.10755635,96647.0,96646.0,0.413563]
[1736877842703,0.10955635,96647.0,96646.0,0.413563]
[1736877843404,0.10955635,96647.0,96646.0,0.412563]
[1736877843405,0.10155635,96647.0,96646.0,0.412563]
[1736877843606,0.10655635,96647.0,96646.0,0.412563]
[1736877844508,0.15831935,96647.0,96646.0,0.412563]
[1736877845306,0.15831935,96647.0,96646.0,0.3608]
[1736877845603,0.051766,96643.0,96642.0,0.051764]
[1736877846805,0.051769,96638.0,96637.0,0.051768]
[1736877847413,0.051769,96638.0,96631.0,0.3608]
[1736877847615,0.10319286,96641.0,96631.0,0.3608]
[1736877847811,0.051771,96632.0,96631.0,0.41257]
[1736877848008,0.01550299,96643.0,96631.0,0.3608]
[1736877848208,0.051767,96641.0,96640.0,0.051765]
[1736877849111,0.051767,96641.0,96631.0,0.3608]
[1736877849112,0.051769,96636.0,96635.0,0.051769]
[1736877849810,0.06000189,96641.0,96631.0,0.3608]
[1736877850014,0.051767,96639.0,96638.0,0.051766]
[1736877851016,0.051769,96635.0,96634.0,0.18431888]
[1736877851412,0.051769,96635.0,96634.0,0.23608888]
[1736877851614,0.051769,96635.0,96634.0,0.05177]
[1736877853114,0.10982368,96647.0,96632.0,0.24636151]
[1736877853307,0.05177,96633.0,96632.0,0.24636151]
[1736877853712,0.05177,96633.0,96632.0,0.29813251]
[1736877854224,0.05177,96633.0,96632.0,0.051771]
[1736877854416,0.05177,96633.0,96632.0,0.052771]
[1736877858120,0.06229491,96633.0,96632.0,0.052771]
[1736877860116,0.09955635,96647.0,96632.0,0.001]
[1736877860313,0.09955635,96647.0,96643.0,0.3608]
[1736877860517,0.09955635,96647.0,96646.0,0.051763]
[1736877861121,0.09955635,96647.0,96646.0,1.551763]
[1736877861425,0.10155635,96647.0,96646.0,0.051763]
[1736877861611,0.10455635,96647.0,96646.0,0.051763]
[1736877862323,0.10655635,96647.0,96646.0,0.051763]
[1736877862814,0.10655635,96647.0,96646.0,0.23594032]
[1736877863214,0.056754,96663.0,96662.0,0.051755]
[1736877863413,0.056754,96663.0,96662.0,0.412555]
[1736877864315,0.013,96663.0,96662.0,0.413555]
[1736877864517,0.017,96663.0,96662.0,0.413555]
[1736877865822,0.017,96663.0,96662.0,0.412555]
[1736877866028,0.014,96663.0,96662.0,0.412555]
[1736877866325,0.01063686,96675.0,96674.0,0.051748]
[1736877866527,0.051747,96677.0,96675.0,0.051747]
[1736877866914,0.00155211,96683.0,96674.0,0.3608]
[1736877867122,0.051744,96682.0,96680.0,0.051745]
[1736877867614,0.01189626,96683.0,96674.0,0.3608]
[1736877867820,0.01189626,96683.0,96682.0,0.051744]
[1736877868020,0.01034415,96683.0,96682.0,0.051744]
[1736877868218,0.412542,96687.0,96682.0,0.051744]
[1736877868219,0.051742,96686.0,96682.0,0.051744]
[1736877868928,0.051742,96685.0,96682.0,0.051744]
[1736877869319,0.003,96683.0,96682.0,0.051744]
[1736877869918,0.051742,96685.0,96682.0,0.051744]
[1736877870118,0.051742,96685.0,96682.0,0.052744]
[1736877871124,0.01045729,96687.0,96682.0,0.052744]
[1736877871125,0.005,96692.0,96682.0,0.3618]
[1736877871334,0.056739,96692.0,96688.0,0.05174]
[1736877871635,0.06736651,96692.0,96688.0,0.05174]
[1736877872327,0.05174,96690.0,96688.0,0.05174]
[1736877872826,0.05174,96690.0,96688.0,0.05274]
[1736877874627,0.051739,96691.0,96688.0,0.001]
[1736877874831,0.05174,96689.0,96688.0,0.001]
[1736877876229,0.05174,96689.0,96662.0,0.00155169]
[1736877876230,0.051754,96663.0,96662.0,0.00155169]
[1736877878830,0.051767,96638.0,96637.0,0.112968]
[1736877879036,0.051766,96643.0,96642.0,0.051765]
[1736877879231,0.051766,96643.0,96642.0,0.412565]
[1736877879435,0.10319286,96660.0,96642.0,0.3608]
[1736877879629,0.05176,96651.0,96650.0,0.412561]
[1736877880425,0.051758,96655.0,96652.0,0.05176]
[1736877880620,0.3608,96666.0,96652.0,0.05176]
[1736877880822,0.05176,96651.0,96650.0,0.3628]
[1736877881329,0.051758,96656.0,96654.0,0.051759]
[1736877882526,0.051758,96656.0,96652.0,0.001]
[1736877882725,0.051758,96656.0,96655.0,0.051758]
[1736877883333,0.051758,96656.0,96655.0,1.551758]
[1736877884137,0.051758,96656.0,96655.0,0.051758]
[1736877884329,0.051758,96655.0,96654.0,0.004]
[1736877884929,0.051758,96655.0,96654.0,0.001]
[1736877885326,0.051758,96655.0,96650.0,0.3608]
[1736877885327,0.10319286,96664.0,96650.0,0.3608]
[1736877885523,0.051758,96656.0,96655.0,0.001]
[1736877886227,0.05176,96651.0,96650.0,0.412561]
[1736877886433,0.051758,96656.0,96654.0,0.003]
[1736877886938,0.051758,96656.0,96655.0,0.052758]
[1736877888029,0.051758,96656.0,96655.0,0.054758]
[1736877888433,0.051758,96656.0,96655.0,0.003]
[1736877888829,0.051766,96641.0,96640.0,0.18417732]
[1736877890235,0.1254,96648.0,96634.0,0.05332123]
[1736877890440,0.1254,96648.0,96640.0,0.002]
[1736877890441,0.051763,96647.0,96640.0,0.002]
[1736877891745,0.051766,96641.0,96640.0,0.002]
[1736877892332,0.051763,96647.0,96634.0,0.051769]
[1736877892533,0.051769,96635.0,96634.0,0.054769]
[1736877892937,0.051769,96635.0,96634.0,0.003]
[1736877893241,0.051766,96641.0,96640.0,0.002]
[1736877894034,0.051766,96641.0,96634.0,0.003]
[1736877894239,0.051769,96635.0,96634.0,0.003]
[1736877894943,0.051769,96635.0,96634.0,0.011]
[1736877895442,0.051769,96635.0,96634.0,0.008]
[1736877896437,0.051769,96635.0,96634.0,0.011]
[1736877897040,0.051769,96635.0,96634.0,0.008]
[1736877897345,0.051769,96635.0,96634.0,0.011]
[1736877897732,0.051769,96635.0,96634.0,0.003]
[1736877897937,0.051769,96635.0,96634.0,0.007]
[1736877898634,0.051769,96635.0,96634.0,0.004]
[1736877898838,0.051769,96635.0,96634.0,0.005]
[1736877899047,0.051769,96635.0,96634.0,0.001]
[1736877899254,0.051769,96635.0,96634.0,0.005]
[1736877900149,0.06218873,96635.0,96634.0,0.005]
[1736877903152,0.051769,96635.0,96634.0,0.05677]
[1736877903854,0.4862,96648.0,96634.0,0.005]
[1736877904041,0.051766,96642.0,96641.0,0.051766]
[1736877904241,0.051769,96637.0,96636.0,0.051768]
[1736877905855,0.051769,96637.0,96636.0,0.056768]
[1736877906552,0.051769,96637.0,96636.0,0.054768]
[1736877906769,0.06209291,96637.0,96636.0,0.056768]
[1736877907449,0.06209291,96637.0,96636.0,0.059768]
[1736877907854,0.051764,96645.0,96644.0,0.051763]
[1736877908044,0.05176,96654.0,96653.0,0.051759]
[1736877908348,0.00052001,96669.0,96653.0,0.3608]
[1736877908547,0.58880871,96680.0,96668.0,0.3608]
[1736877908850,0.58880871,96680.0,96671.0,0.05175]
[1736877908851,0.58932872,96680.0,96671.0,0.05175]
[1736877909444,0.24785772,96691.0,96679.0,0.412545]
[1736877909650,0.24785772,96691.0,96690.0,0.41254]
[1736877910859,0.01554017,96692.0,96690.0,0.41254]
[1736877911450,0.051739,96691.0,96690.0,0.41254]
[1736877911950,0.053739,96691.0,96690.0,0.41354]
[1736877912351,0.053739,96691.0,96690.0,0.3618]
[1736877912859,0.051739,96691.0,96690.0,0.3608]
[1736877913156,0.051739,96691.0,96690.0,0.3618]
[1736877913360,0.108439,96691.0,96690.0,0.3618]
[1736877914458,0.108439,96691.0,96690.0,0.3608]
[1736877914755,0.110439,96691.0,96690.0,0.3618]
[1736877915250,0.110439,96691.0,96690.0,0.001]
[1736877916056,0.05175,96672.0,96670.0,0.00155161]
[1736877916361,0.111439,96691.0,96670.0,0.00155161]
[1736877916362,0.10319286,96680.0,96670.0,0.00155161]
[1736877916556,0.05175,96671.0,96670.0,0.00155161]
[1736877918664,0.05475,96671.0,96670.0,0.00155161]
[1736877919971,0.06529055,96671.0,96670.0,0.00155161]
[1736877920265,0.06529055,96671.0,96650.0,1.5]
[1736877920266,0.051756,96659.0,96650.0,1.5]
[1736877920566,0.051756,96659.0,96650.0,1.50108]
[1736877920864,0.051756,96659.0,96650.0,1.552841]
[1736877921781,0.051756,96659.0,96658.0,0.3638]
[1736877922966,0.051756,96659.0,96658.0,0.003]
[1736877923971,0.052756,96659.0,96658.0,0.003]
[1736877924266,0.051767,96639.0,96638.0,0.3608]
[1736877925258,0.051767,96639.0,96638.0,0.3698]
[1736877925456,0.15494286,96670.0,96638.0,0.3738]
[1736877925672,0.051762,96648.0,96647.0,0.3608]
[1736877926269,0.051762,96648.0,96647.0,1.912563]
[1736877926856,0.10319286,96657.0,96647.0,1.912563]
[1736877926857,0.05176,96653.0,96652.0,0.05176]